fUSD/lending_fUSD_20240114
["ID","MTS","AMOUNT","RATE_DAILY","PERIOD"]
[311620838,1705265534973,-500.0,0.0003315,2]
[311620839,1705265534982,-803.67,0.0003315,2]
[311620840,1705265534991,-500.0,0.0003315,2]
[311620841,1705265535000,-869.2,0.0003315,2]
[311620842,1705265535010,-500.0,0.0003315,2]
[311620843,1705265535019,-581.19,0.0003315,2]
[311620844,1705265535028,-633.03,0.0003315,2]
[311620845,1705265535038,-969.9,0.0003315,2]
[311620846,1705265535048,-2946.84,0.0003315,2]
[311620847,1705265535057,-711.01,0.0003315,2]
[311620848,1705265535067,-1464.74,0.0003315,2]
[311620849,1705265535076,-552.27,0.0003315,2]
[311620850,1705265535086,-1928.32,0.0003315,2]
[311620851,1705265535096,-1643.12,0.0003315,2]
[311620852,1705265535106,-1109.23,0.0003315,2]
[311620853,1705265535115,-1413.08,0.0003315,2]
[311620854,1705265535125,-1980.27,0.0003315,2]
[311620855,1705265535134,-503.28,0.0003315,2]
[311620856,1705265535144,-500.0,0.0003315,2]
[311620857,1705265535154,-500.0,0.0003315,2]
[311620858,1705265535164,-500.0,0.0003315,2]
[311620859,1705265535174,-532.18,0.0003315,2]
[311620860,1705265535185,-1886.92,0.0003315,2]
[311620861,1705265535195,-710.77,0.0003315,2]
[311620862,1705265535205,-560.65,0.0003315,2]
[311620863,1705265535214,-610.95,0.0003315,2]
[311620864,1705265535224,-500.0,0.0003315,2]
[311620865,1705265535233,-848.62,0.0003315,2]
[311620866,1705265535242,-4590.19,0.0003315,2]
[311620867,1705265535254,-567.58,0.0003315,2]
[311620868,1705265535264,-4894.0,0.00033215,30]
[311620869,1705265535273,-152.286792,0.00033238,2]
[311620870,1705265535283,-182.472387,0.00033238,2]
[311620871,1705265535293,-150.322426,0.00033238,2]
[311620872,1705265535302,-180.075391,0.00033238,2]
[311620873,1705265535311,-829.570305,0.00033238,2]
[311620874,1705265535321,-150.0,0.00033242,2]
[311620875,1705265535331,-50000.0,0.00033257,10]
[311620876,1705265535340,-21837.10086435,0.00033257,10]
[311620877,1705265535349,-91963.76838505,0.00033257,10]
[311620878,1705265535359,-209761.7382513,0.00033257,10]
[311620879,1705265535369,-21663.34565357,0.00033257,10]
[311620880,1705265535379,-756.74769349,0.00033274,5]
[311620881,1705265535389,-32034.0,0.00033284,2]
[311620882,1705265535398,-100000.0,0.00033324,2]
[311620883,1705265535408,-138073.4426,0.00033324,2]
[311620884,1705265535417,-382.5112,0.00033324,2]
[311620885,1705265535426,-150.0,0.00033329,2]
[311620886,1705265535435,-294.11,0.00033341,2]
[311620887,1705265535445,-418.07,0.00033341,2]
[311620888,1705265535456,-314.34,0.00033341,2]
[311620889,1705265535465,-314.34,0.00033341,2]
[311620890,1705265535475,-418.07,0.00033341,2]
[311620891,1705265535484,-418.07,0.00033341,2]
[311620892,1705265535494,-418.07,0.00033341,2]
[311620893,1705265535503,-406.11,0.00033341,2]
[311620894,1705265535513,-33481.73,0.00033361,2]
[311620895,1705265535522,-150.0,0.00033363,2]
[311620896,1705265535531,-31803.25237605,0.0003337,2]
[311620897,1705265535540,-2041.88927517,0.0003337,2]
[311620898,1705265535550,-940.47,0.00033386,2]
[311620899,1705265535559,-401.38,0.00033386,2]
[311620900,1705265535569,-150.0,0.00033394,2]
[311620901,1705265535579,-1993.60653099,0.00033421,2]
[311620902,1705265535588,-500.0,0.00033424,2]
[311620903,1705265535598,-500.0,0.00033424,2]
[311620904,1705265535607,-284.90755116,0.00033424,2]
[311620905,1705265535616,-437.18846378,0.00033424,2]
[311620906,1705265535625,-500.0,0.00033424,2]
[311620907,1705265535635,-381.34984079,0.00033424,2]
[311620908,1705265535644,-500.0,0.00033424,2]
[311620909,1705265535654,-500.0,0.00033424,2]
[311620910,1705265535664,-193.39944643,0.00033424,2]
[311620911,1705265535673,-500.0,0.00033424,2]
[311620912,1705265535682,-528.74,0.00033424,2]
[311620913,1705265535692,-504.09,0.00033424,2]
[311620914,1705265535701,-502.48,0.00033424,2]
[311620915,1705265535710,-500.0,0.00033424,2]
[311620916,1705265535719,-500.0,0.00033424,2]
[311620917,1705265535729,-770.53,0.00033424,2]
[311620918,1705265535738,-500.0,0.00033424,2]
[311620919,1705265535747,-536.98,0.00033424,2]
[311620920,1705265535757,-926.02,0.00033424,2]
[311620921,1705265535766,-274.16137511,0.00033424,2]
[311620922,1705265535775,-1147.85,0.00033424,2]
[311620923,1705265535784,-500.0,0.00033424,2]
[311620924,1705265535793,-500.0,0.00033424,2]
[311620925,1705265535802,-541.41,0.00033424,2]
[311620926,1705265535811,-500.0,0.00033424,2]
[311620927,1705265535820,-500.0,0.00033424,2]
[311620928,1705265535830,-500.0,0.00033424,2]
[311620929,1705265535839,-709.9,0.00033424,2]
[311620930,1705265535849,-500.0,0.00033424,2]
[311620931,1705265535859,-500.0,0.00033424,2]
[311620932,1705265535868,-656.39,0.00033424,2]
[311620933,1705265535877,-500.0,0.00033424,2]
[311620934,1705265535887,-500.0,0.00033424,2]
[311620935,1705265535896,-500.0,0.00033424,2]
[311620936,1705265535905,-500.0,0.00033424,2]
[311620937,1705265535914,-585.77,0.00033424,2]
[311620938,1705265535923,-500.0,0.00033424,2]
[311620939,1705265535933,-646.67,0.00033424,2]
[311620940,1705265535942,-500.0,0.00033424,2]
[311620941,1705265535952,-500.0,0.00033424,2]
[311620942,1705265535961,-518.76,0.00033424,2]
[311620943,1705265535970,-500.0,0.00033424,2]
[311620944,1705265535979,-500.0,0.00033424,2]
[311620945,1705265535988,-500.0,0.00033424,2]
[311620946,1705265535997,-500.0,0.00033424,2]
[311620947,1705265536007,-673.27,0.00033424,2]
[311620948,1705265536017,-653.68,0.00033424,2]
[311620949,1705265536026,-640.51,0.00033424,2]
[311620950,1705265536035,-595.86,0.00033424,2]
[311620951,1705265536045,-565.95,0.00033424,2]
[311620952,1705265536055,-500.0,0.00033424,2]
[311620953,1705265536064,-588.78,0.00033424,2]
[311620954,1705265536073,-645.55,0.00033424,2]
[311620955,1705265536082,-683.34,0.00033424,2]
[311620956,1705265536091,-551.22,0.00033424,2]
[311620957,1705265536100,-500.0,0.00033424,2]
[311620958,1705265536109,-594.67,0.00033424,2]
[311620959,1705265536119,-500.0,0.00033424,2]
[311620960,1705265536128,-963.4,0.00033424,2]
[311620961,1705265536138,-601.15,0.00033424,2]
[311620962,1705265536148,-665.95,0.00033424,2]
[311620963,1705265536160,-500.0,0.00033424,2]
[311620964,1705265536171,-500.0,0.00033424,2]
[311620965,1705265536181,-500.0,0.00033424,2]
[311620966,1705265536193,-800.79,0.00033424,2]
[311620967,1705265536202,-562.08,0.00033424,2]
[311620968,1705265536213,-626.87,0.00033424,2]
[311620969,1705265536222,-500.0,0.00033424,2]
[311620970,1705265536231,-500.0,0.00033424,2]
[311620971,1705265536240,-727.57,0.00033424,2]
[311620972,1705265536250,-560.21,0.00033424,2]
[311620973,1705265536259,-500.0,0.00033424,2]
[311620974,1705265536269,-500.0,0.00033424,2]
[311620975,1705265536278,-500.0,0.00033424,2]
[311620976,1705265536288,-607.16,0.00033424,2]
[311620977,1705265536298,-982.04,0.00033424,2]
[311620978,1705265536307,-500.0,0.00033424,2]
[311620979,1705265536317,-600.07,0.00033424,2]
[311620980,1705265536327,-500.0,0.00033424,2]
[311620981,1705265536336,-1048.4,0.00033424,2]
[311620982,1705265536346,-950.82,0.00033424,2]
[311620983,1705265536355,-775.5,0.00033424,2]
[311620984,1705265536365,-500.0,0.00033424,2]
[311620985,1705265536376,-806.58,0.00033424,2]
[311620986,1705265536385,-748.97,0.00033424,2]
[311620987,1705265536395,-500.0,0.00033424,2]
[311620988,1705265536404,-500.0,0.00033424,2]
[311620989,1705265536416,-500.0,0.00033424,2]
[311620990,1705265536426,-544.49,0.00033424,2]
[311620991,1705265536436,-500.0,0.00033424,2]
[311620992,1705265536445,-500.0,0.00033424,2]
[311620993,1705265536455,-500.0,0.00033424,2]
[311620994,1705265536465,-671.61,0.00033424,2]
[311620995,1705265536474,-500.0,0.00033424,2]
[311620996,1705265536483,-500.0,0.00033424,2]
[311620997,1705265536493,-500.0,0.00033424,2]
[311620998,1705265536503,-500.0,0.00033424,2]
[311620999,1705265536513,-500.0,0.00033424,2]
[311621000,1705265536523,-602.2,0.00033424,2]
[311621001,1705265536532,-500.0,0.00033424,3]
[311621002,1705265536542,-769.86,0.00033424,2]
[311621003,1705265536552,-500.0,0.00033424,2]
[311621004,1705265536561,-500.0,0.00033424,2]
[311621005,1705265536572,-500.0,0.00033424,2]
[311621006,1705265536581,-500.0,0.00033424,2]
[311621007,1705265536591,-500.0,0.00033424,2]
[311621008,1705265536601,-500.0,0.00033424,2]
[311621009,1705265536610,-692.82,0.00033424,2]
[311621010,1705265536620,-507.31,0.00033424,2]
[311621011,1705265536629,-500.0,0.00033424,2]
[311621012,1705265536639,-500.0,0.00033424,2]
[311621013,1705265536648,-729.84,0.00033424,2]
[311621014,1705265536658,-536.68,0.00033424,2]
[311621015,1705265536668,-583.46,0.00033424,2]
[311621016,1705265536677,-500.0,0.00033424,2]
[311621017,1705265536687,-500.0,0.00033424,2]
[311621018,1705265536697,-500.0,0.00033424,2]
[311621019,1705265536706,-500.0,0.00033424,2]
[311621020,1705265536716,-500.0,0.00033424,2]
[311621021,1705265536725,-500.0,0.00033424,2]
[311621022,1705265536736,-1000.1,0.00033424,2]
[311621023,1705265536747,-500.0,0.00033424,2]
[311621024,1705265536758,-702.71,0.00033424,2]
[311621025,1705265536767,-500.0,0.00033424,2]
[311621026,1705265536776,-500.0,0.00033424,2]
[311621027,1705265536785,-793.74,0.00033424,2]
[311621028,1705265536795,-923.77,0.00033424,2]
[311621029,1705265536805,-500.0,0.00033424,2]
[311621030,1705265536814,-500.0,0.00033424,2]
[311621031,1705265536824,-629.36,0.00033424,2]
[311621032,1705265536834,-500.0,0.00033424,2]
[311621033,1705265536941,-867.3,0.00033424,2]
[311621034,1705265536951,-500.0,0.00033424,2]
[311621035,1705265536960,-500.0,0.00033424,2]
[311621036,1705265536970,-500.0,0.00033424,2]
[311621037,1705265536980,-581.81,0.00033424,2]
[311621038,1705265536989,-624.05,0.00033424,2]
[311621039,1705265536998,-830.39,0.00033424,2]
[311621040,1705265537008,-500.0,0.00033424,2]
[311621041,1705265537017,-677.4,0.00033424,2]
[311621042,1705265537028,-1100.99,0.00033424,2]
[311621043,1705265537037,-525.17,0.00033424,2]
[311621044,1705265537047,-500.0,0.00033424,2]
[311621045,1705265537056,-500.0,0.00033424,2]
[311621046,1705265537066,-586.11,0.00033424,2]
[311621047,1705265537075,-500.0,0.00033424,2]
[311621048,1705265537085,-500.0,0.00033424,2]
[311621049,1705265537094,-1229.11,0.00033424,2]
[311621050,1705265537103,-1106.76,0.00033424,2]
[311621051,1705265537113,-500.0,0.00033424,2]
[311621052,1705265537122,-500.0,0.00033424,2]
[311621053,1705265537132,-894.93,0.00033424,2]
[311621054,1705265537141,-608.9,0.00033424,2]
[311621055,1705265537151,-500.0,0.00033424,2]
[311621056,1705265537163,-946.64,0.00033424,2]
[311621057,1705265537172,-500.0,0.00033424,2]
[311621058,1705265537182,-619.49,0.00033424,2]
[311621059,1705265537191,-868.77,0.00033424,2]
[311621060,1705265537201,-543.5525345,0.00033424,2]
[311621061,1705265537210,-500.0,0.00033424,2]
[311621062,1705265537219,-494.44500203,0.00033424,2]
[311621063,1705265537229,-578.25,0.00033424,2]
[311621064,1705265537238,-500.0,0.00033424,2]
[311621065,1705265537247,-500.0,0.00033424,2]
[311621066,1705265537257,-500.0,0.00033424,2]
[311621067,1705265537266,-500.0,0.00033424,2]
[311621068,1705265537275,-532.95,0.00033424,2]
[311621069,1705265537284,-1204.84,0.00033424,2]
[311621070,1705265537294,-500.0,0.00033424,2]
[311621071,1705265537303,-500.0,0.00033424,2]
[311621072,1705265537313,-281.79068551,0.00033424,2]
[311621073,1705265537323,-545.29,0.00033424,2]
[311621074,1705265537331,-500.0,0.00033424,2]
[311621075,1705265537341,-670.63,0.00033424,2]
[311621076,1705265537350,-523.04,0.00033424,2]
[311621077,1705265537360,-500.0,0.00033424,2]
[311621078,1705265537368,-500.0,0.00033424,2]
[311621079,1705265537377,-500.0,0.00033424,2]
[311621080,1705265537387,-636.75,0.00033424,2]
[311621081,1705265537396,-596.02,0.00033424,2]
[311621082,1705265537406,-1015.13,0.00033424,2]
[311621083,1705265537417,-500.0,0.00033424,2]
[311621084,1705265537427,-1744.35,0.00033424,2]
[311621085,1705265537436,-851.16,0.00033424,2]
[311621086,1705265537445,-536.9,0.00033424,2]
[311621087,1705265537454,-846.45,0.00033424,2]
[311621088,1705265537464,-500.0,0.00033424,2]
[311621089,1705265537474,-500.0,0.00033424,2]
[311621090,1705265537483,-607.07,0.00033424,2]
[311621091,1705265537492,-500.0,0.00033424,2]
[311621092,1705265537502,-1022.21,0.00033424,2]
[311621093,1705265537511,-797.3,0.00033424,2]
[311621094,1705265537521,-500.0,0.00033424,2]
[311621095,1705265537530,-560.52,0.00033424,2]
[311621096,1705265537540,-1056.73,0.00033424,2]
[311621097,1705265537549,-546.08,0.00033424,2]
[311621098,1705265537560,-1547.25,0.00033424,2]
[311621099,1705265537569,-715.62,0.00033424,2]
[311621100,1705265537578,-500.0,0.00033424,2]
[311621101,1705265537587,-900.1,0.00033424,2]
[311621102,1705265537597,-500.0,0.00033424,2]
[311621103,1705265537606,-500.0,0.00033424,2]
[311621104,1705265537616,-1245.22,0.00033424,2]
[311621105,1705265537625,-500.0,0.00033424,2]
[311621106,1705265537634,-2718.67,0.00033424,2]
[311621107,1705265537644,-679.75,0.00033424,2]
[311621108,1705265537654,-1251.06,0.00033424,2]
[311621109,1705265537667,-650.18,0.00033424,2]
[311621110,1705265537676,-500.0,0.00033424,2]
[311621111,1705265537686,-500.0,0.00033424,2]
[311621112,1705265537695,-983.25,0.00033424,2]
[311621113,1705265537705,-2249.92,0.00033424,2]
[311621114,1705265537714,-500.0,0.00033424,2]
[311621115,1705265537724,-595.82,0.00033424,2]
[311621116,1705265537734,-500.0,0.00033424,2]
[311621117,1705265537745,-299.93660247,0.00033424,2]
[311621118,1705265537759,-500.0,0.00033424,2]
[311621119,1705265537769,-1879.49,0.00033424,2]
[311621120,1705265537779,-979.35,0.00033424,2]
[311621121,1705265537789,-252.72,0.00033424,2]
[311621122,1705265537798,-645.75,0.00033424,2]
[311621123,1705265537808,-629.35,0.00033424,2]
[311621124,1705265537818,-689.93,0.00033424,2]
[311621125,1705265537827,-905.95,0.00033424,2]
[311621126,1705265537837,-669.74,0.00033424,2]
[311621127,1705265537846,-658.52,0.00033424,2]
[311621128,1705265537856,-500.0,0.00033424,2]
[311621129,1705265537865,-500.0,0.00033424,2]
[311621130,1705265537874,-500.0,0.00033424,2]
[311621131,1705265537883,-1000.92,0.00033424,2]
[311621132,1705265537893,-584.45,0.00033424,2]
[311621133,1705265537902,-500.0,0.00033424,2]
[311621134,1705265537914,-500.0,0.00033424,2]
[311621135,1705265537923,-500.0,0.00033424,2]
[311621136,1705265537932,-500.0,0.00033424,2]
[311621137,1705265537941,-596.4,0.00033424,2]
[311621138,1705265537951,-646.38,0.00033424,2]
[311621139,1705265537961,-675.0,0.00033424,2]
[311621140,1705265537970,-500.0,0.00033424,2]
[311621141,1705265537980,-679.48,0.00033424,2]
[311621142,1705265537989,-886.22,0.00033424,2]
[311621143,1705265537999,-698.99,0.00033424,2]
[311621144,1705265538009,-567.27,0.00033424,2]
[311621145,1705265538018,-1207.58,0.00033424,2]
[311621146,1705265538027,-692.03,0.00033424,2]
[311621147,1705265538036,-4337.15,0.00033424,2]
[311621148,1705265538046,-1455.02,0.00033424,2]
[311621149,1705265538055,-718.79,0.00033424,2]
[311621150,1705265538066,-852.88,0.00033424,2]
[311621151,1705265538077,-500.0,0.00033424,2]
[311621152,1705265538086,-500.0,0.00033424,2]
[311621153,1705265538096,-500.0,0.00033424,2]
[311621154,1705265538106,-902.9,0.00033424,2]
[311621155,1705265538116,-500.0,0.00033424,5]
[311621156,1705265538126,-500.0,0.00033424,2]
[311621157,1705265538136,-746.49,0.00033424,2]
[311621158,1705265538146,-541.15,0.00033424,2]
[311621159,1705265538157,-500.0,0.00033424,2]
[311621160,1705265538170,-500.0,0.00033424,2]
[311621161,1705265538180,-7127.94,0.00033424,2]
[311621162,1705265538190,-727.08,0.00033424,2]
[311621163,1705265538200,-918.26,0.00033424,2]
[311621164,1705265538211,-2334.97,0.00033424,2]
[311621165,1705265538220,-571.94,0.00033424,2]
[311621166,1705265538229,-520.99,0.00033424,2]
[311621167,1705265538238,-500.0,0.00033424,2]
[311621168,1705265538247,-1278.08,0.00033424,2]
[311621169,1705265538257,-500.0,0.00033424,2]
[311621170,1705265538266,-1335.19,0.00033424,2]
[311621171,1705265538276,-500.0,0.00033424,2]
[311621172,1705265538286,-507.96,0.00033424,2]
[311621173,1705265538297,-682.65,0.00033424,2]
[311621174,1705265538306,-2191.12,0.00033424,2]
[311621175,1705265538316,-1823.86,0.00033424,2]
[311621176,1705265538326,-651.64,0.00033424,2]
[311621177,1705265538336,-566.33,0.00033424,2]
[311621178,1705265538345,-602.37,0.00033424,2]
[311621179,1705265538354,-883.91,0.00033424,2]
[311621180,1705265538364,-500.0,0.00033424,2]
[311621181,1705265538373,-14316.0,0.00033424,2]
[311621182,1705265538382,-2214.32,0.00033424,2]
[311621183,1705265538391,-1750.64,0.00033424,2]
[311621184,1705265538401,-875.93,0.00033424,2]
[311621185,1705265538414,-500.0,0.00033424,2]
[311621186,1705265538423,-596.16,0.00033424,2]
[311621187,1705265538433,-846.65,0.00033424,2]
[311621188,1705265538443,-1849.03,0.00033424,2]
[311621189,1705265538453,-753.89,0.00033424,2]
[311621190,1705265538462,-500.0,0.00033424,2]
[311621191,1705265538472,-1112.66,0.00033424,2]
[311621192,1705265538482,-1725.14,0.00033424,2]
[311621193,1705265538492,-796.33,0.00033424,2]
[311621194,1705265538501,-500.0,0.00033424,2]
[311621195,1705265538511,-808.86,0.00033424,2]
[311621196,1705265538521,-899.24,0.00033424,2]
[311621197,1705265538531,-1429.98,0.00033424,2]
[311621198,1705265538541,-500.0,0.00033424,2]
[311621199,1705265538551,-524.71,0.00033424,2]
[311621200,1705265538560,-500.0,0.00033424,2]
[311621201,1705265538570,-1713.52,0.00033424,2]
[311621202,1705265538579,-1102.84,0.00033424,2]
[311621203,1705265538588,-1618.96,0.00033424,2]
[311621204,1705265538598,-1116.72,0.00033424,2]
[311621205,1705265538607,-2696.94,0.00033424,2]
[311621206,1705265538617,-500.0,0.00033424,2]
[311621207,1705265538626,-794.76,0.00033424,2]
[311621208,1705265538635,-500.0,0.00033424,2]
[311621209,1705265538645,-500.0,0.00033424,2]
[311621210,1705265538654,-724.53,0.00033424,2]
[311621211,1705265538666,-1597.13,0.00033424,2]
[311621212,1705265538675,-737.29,0.00033424,2]
[311621213,1705265538687,-622.57,0.00033424,2]
[311621214,1705265538697,-500.0,0.00033424,2]
[311621215,1705265538706,-1009.68,0.00033424,2]
[311621216,1705265538716,-640.35,0.00033424,2]
[311621217,1705265538726,-500.0,0.00033424,2]
[311621218,1705265538735,-500.0,0.00033424,2]
[311621219,1705265538746,-254.44,0.00033424,2]
[311621220,1705265538759,-1595.29,0.00033424,2]
[311621221,1705265538768,-500.0,0.00033424,2]
[311621222,1705265538777,-917.26,0.00033424,2]
[311621223,1705265538788,-565.13,0.00033424,2]
[311621224,1705265538797,-4300.16,0.00033424,2]
[311621225,1705265538806,-2100.41,0.00033424,2]
[311621226,1705265538816,-1007.56,0.00033424,2]
[311621227,1705265538826,-776.73,0.00033424,2]
[311621228,1705265538836,-500.0,0.00033424,2]
[311621229,1705265538846,-5057.58,0.00033424,2]
[311621230,1705265538855,-933.45,0.00033424,2]
[311621231,1705265538865,-500.0,0.00033424,2]
[311621232,1705265538875,-531.05,0.00033424,2]
[311621233,1705265538884,-500.0,0.00033424,2]
[311621234,1705265538894,-1593.77,0.00033424,2]
[311621235,1705265538904,-720.02,0.00033424,2]
[311621236,1705265538915,-500.0,0.00033424,5]
[311621237,1705265538924,-500.0,0.00033424,2]
[311621238,1705265538933,-1573.4,0.00033424,2]
[311621239,1705265538942,-4742.8,0.00033424,2]
[311621240,1705265538951,-500.0,0.00033424,2]
[311621241,1705265538961,-500.0,0.00033424,2]
[311621242,1705265538970,-3392.17,0.00033424,2]
[311621243,1705265538979,-332.22,0.00033424,2]
[311621244,1705265538988,-881.88,0.00033424,2]
[311621245,1705265538998,-3302.73,0.00033424,2]
[311621246,1705265539007,-1145.63,0.00033424,2]
[311621247,1705265539017,-755.87,0.00033424,2]
[311621248,1705265539026,-500.0,0.00033424,2]
[311621249,1705265539036,-500.0,0.00033424,2]
[311621250,1705265539045,-3349.66,0.00033424,2]
[311621251,1705265539055,-699.61,0.00033424,2]
[311621252,1705265539064,-911.19,0.00033424,2]
[311621253,1705265539074,-500.0,0.00033424,2]
[311621254,1705265539083,-9373.54,0.00033424,2]
[311621255,1705265539093,-1446.11,0.00033424,2]
[311621256,1705265539103,-563.79,0.00033424,2]
[311621257,1705265539112,-1392.74,0.00033424,2]
[311621258,1705265539121,-500.0,0.00033424,2]
[311621259,1705265539131,-580.88,0.00033424,2]
[311621260,1705265539140,-1674.87,0.00033424,2]
[311621261,1705265539149,-4587.73133556,0.00033424,2]
[311621262,1705265539493,-1251.38715086,0.00033424,2]
[311621263,1705265539505,-761.18262149,0.00033424,2]
[311621264,1705265539518,-3354.03889209,0.00033424,2]
[311621265,1705265539529,-2675.53,0.00033424,2]
[311621266,1705265539540,-1402.19,0.00033424,2]
[311621267,1705265539549,-638.69,0.00033424,2]
[311621268,1705265539559,-609.69,0.00033424,2]
[311621269,1705265539569,-500.0,0.00033424,2]
[311621270,1705265539579,-5600.69,0.00033424,2]
[311621271,1705265539588,-541.21,0.00033424,2]
[311621272,1705265539599,-403.49484094,0.00033424,2]
[311621273,1705265539608,-830.84,0.00033424,2]
[311621274,1705265539618,-440.14626194,0.00033424,2]
[311621275,1705265539631,-1806.80373806,0.00033424,2]
[311621276,1705265539641,-924.51,0.00033424,2]
[311621277,1705265539650,-3335.08,0.00033424,2]
[311621278,1705265539661,-10595.33,0.00033424,2]
[311621279,1705265539671,-500.0,0.00033424,2]
[311621280,1705265539680,-836.16,0.00033424,2]
[311621281,1705265539690,-500.0,0.00033424,2]
[311621282,1705265539699,-500.0,0.00033424,2]
[311621283,1705265539709,-646.01,0.00033424,2]
[311621284,1705265539718,-500.0,0.00033424,2]
[311621285,1705265539728,-500.0,0.00033424,2]
[311621286,1705265539738,-500.0,0.00033424,2]
[311621287,1705265539748,-500.0,0.00033424,2]
[311621288,1705265539760,-500.0,0.00033424,2]
[311621289,1705265539770,-1637.96,0.00033424,2]
[311621290,1705265539779,-500.0,0.00033424,2]
[311621291,1705265539789,-3225.32,0.00033424,2]
[311621292,1705265539799,-500.0,0.00033424,2]
[311621293,1705265539809,-3401.5,0.00033424,2]
[311621294,1705265539818,-699.52,0.00033424,2]
[311621295,1705265539828,-1658.41,0.00033424,2]
[311621296,1705265539838,-500.0,0.00033424,2]
[311621297,1705265539849,-898.47,0.00033424,2]
[311621298,1705265539859,-747.38,0.00033424,2]
[311621299,1705265539869,-502.0,0.00033424,2]
[311621300,1705265539879,-3294.26,0.00033424,2]
[311621301,1705265539889,-781.12,0.00033424,2]
[311621302,1705265539898,-2934.21,0.00033424,2]
[311621303,1705265539908,-28330.08,0.00033424,2]
[311621304,1705265539920,-1324.02,0.00033424,2]
[311621305,1705265539929,-915.45,0.00033424,2]
[311621306,1705265539939,-1385.96,0.00033424,2]
[311621307,1705265539949,-500.0,0.00033424,2]
[311621308,1705265539959,-2258.81,0.00033424,2]
[311621309,1705265539968,-509.43,0.00033424,2]
[311621310,1705265539978,-993.95,0.00033424,2]
[311621311,1705265539987,-206.23746146,0.00033424,2]
[311621312,1705265539997,-630.07,0.00033424,2]
[311621313,1705265540007,-500.0,0.00033424,2]
[311621314,1705265540017,-500.0,0.00033424,2]
[311621315,1705265540026,-663.38,0.00033424,2]
[311621316,1705265540035,-534.75,0.00033424,2]
[311621317,1705265540047,-3829.90352829,0.00033424,2]
[311621318,1705265540063,-2428.35207815,0.00033424,2]
[311621319,1705265540075,-980.43439356,0.00033424,2]
[311621320,1705265540086,-169.60617529,0.00033424,2]
[311621321,1705265540098,-1391.03421706,0.00033424,2]
[311621322,1705265540126,-517.07960765,0.00033424,2]
[311621323,1705265540138,-500.0,0.00033424,2]
[311621324,1705265540149,-1376.21,0.00033424,2]
[311621325,1705265540164,-116.92864985,0.00033424,2]
[311621326,1705265540934,-795.34767108,0.000273,2]
[311621327,1705265540944,-500.0,0.00030136,2]
[311621328,1705265540954,-500.0,0.00030136,2]
[311621329,1705265540963,-330.87496774,0.00030136,2]
[311621330,1705265540977,-169.12503226,0.00030136,2]
[311621331,1705265540986,-500.0,0.00030136,2]
[311621332,1705265540995,-500.0,0.0003041,2]
[311621333,1705265541004,-500.0,0.0003041,2]
[311621334,1705265541014,-500.0,0.0003041,2]
[311621335,1705265541023,-500.0,0.0003041,2]
[311621336,1705265541033,-500.0,0.00030684,2]
[311621337,1705265541042,-244.44110121,0.00030684,2]